bitfinex/quotes_SOLUSD_20260309
["timestamp","ask_amount","ask_price","bid_price","bid_amount"]
[1773091682658,4.14956102,86.14,86.104,1.6278464]
[1773091682962,4.14956102,86.14,86.103,11.61399718]
[1773091682963,4.14956102,86.15,86.106,1.6278464]
[1773091683744,4.24956102,86.2,86.109,4.82477569]
[1773091683958,3.69383402,86.187,86.11,1.6278464]
[1773091684256,10.37783962,86.19,86.112,0.28432314]
[1773091684257,0.28432314,86.189,86.112,0.28432314]
[1773091684440,0.28432314,86.189,86.119,1.6278464]
[1773091684865,40.89275345,86.189,86.121,1.6278464]
[1773091686164,40.89275345,86.189,86.123,1.6278464]
[1773091687369,40.60843031,86.189,86.125,1.6278464]
[1773091687665,40.60843031,86.189,86.129,1.6278464]
[1773091687967,4.14956102,86.18,86.129,1.6278464]
[1773091688967,11.60375497,86.179,86.131,1.6278464]
[1773091691974,11.60375497,86.179,86.133,1.6278464]
[1773091692879,29.00884713,86.181,86.135,1.6278464]
[1773091695589,29.00884713,86.181,86.137,1.6278464]
[1773091697971,4.13952877,86.18,86.139,1.6278464]
[1773091699593,11.60375497,86.179,86.141,1.6278464]
[1773091702488,11.60375497,86.179,86.143,1.6278464]
[1773091704796,0.2,86.19,86.121,0.28432314]
[1773091704797,0.2,86.19,86.145,1.6278464]
[1773091705180,0.2,86.19,86.147,1.6278464]
[1773091705386,0.2,86.19,86.149,1.6278464]
[1773091706381,1e-08,86.19,86.156,0.28432314]
[1773091706588,1e-08,86.19,86.159,1.6278464]
[1773091707091,1e-08,86.19,86.152,1.16073915]
[1773091707092,1e-08,86.19,86.161,1.6278464]
[1773091707592,0.1,86.21,86.167,0.28432314]
[1773091707801,0.1,86.21,86.17,1.5778464]
[1773091708192,0.1,86.22,86.177,5.10909883]
[1773091708387,0.1,86.22,86.164,1.1605775]
[1773091708388,0.1,86.22,86.18,1.5778464]
[1773091708894,0.1,86.22,86.183,1.5778464]
[1773091709199,0.1,86.22,86.181,40.61219989]
[1773091709200,0.1,86.22,86.189,1.5778464]
[1773091711688,0.1,86.22,86.191,1.5778464]
[1773091714605,0.1,86.22,86.194,1.5778464]
[1773091718004,4.13952877,86.21,86.176,1.5778464]
[1773091718205,4.13952877,86.19,86.162,13.18389082]
[1773091718392,4.13952877,86.19,86.146,1.5778464]
[1773091718588,4.13952877,86.17,86.146,13.18604643]
[1773091718900,4.13952877,86.17,86.147,1.5778464]
[1773091719902,4.13952877,86.17,86.148,13.18577693]
[1773091720109,4.13952877,86.17,86.149,1.5778464]
[1773091720794,11.6051016,86.169,86.149,1.5778464]
[1773091721306,4.13952877,86.18,86.149,1.5778464]
[1773091722000,11.60375497,86.179,86.149,1.5778464]
[1773091723011,11.60375497,86.179,86.15,13.18550745]
[1773091724413,11.60375497,86.179,86.151,1.5778464]
[1773091724629,4.13952877,86.17,86.136,11.60943673]
[1773091724798,4.13952877,86.16,86.134,1.5778464]
[1773091724999,4.13952877,86.17,86.134,1.5778464]
[1773091729510,11.6051016,86.169,86.136,1.5778464]
[1773091732617,11.6051016,86.169,86.138,1.5778464]
[1773091735518,11.6051016,86.169,86.14,1.5778464]
[1773091736122,2.47215037,103.54,86.14,1.5778464]
[1773091736332,4.13952877,86.2,86.142,1.5778464]
[1773091736505,4.13952877,86.2,86.15,1.5778464]
[1773091737101,4.13952877,86.21,86.16,1.5778464]
[1773091737722,11.59971696,86.209,86.162,1.5778464]
[1773091738121,4.13952877,86.2,86.162,1.5778464]
[1773091738930,4.13952877,86.19,86.162,1.5778464]
[1773091740123,4.13952877,86.18,86.156,13.18460968]
[1773091740308,4.13952877,86.18,86.157,1.5778464]
[1773091741337,11.60375497,86.179,86.157,1.5778464]
[1773091742029,11.60375497,86.179,86.159,1.5778464]
[1773091742229,4.13952877,86.2,86.159,1.5778464]
[1773091742412,3.69383402,86.207,86.159,1.5778464]
[1773091742730,4.13952877,86.2,86.159,1.5778464]
[1773091745734,11.59971696,86.209,86.161,1.5778464]
[1773091750525,11.59971696,86.209,86.163,1.5778464]
[1773091752244,4.13952877,86.2,86.163,1.5778464]
[1773091752437,4.13952877,86.2,86.165,1.5778464]
[1773091753147,11.60106265,86.199,86.167,1.5778464]
[1773091754241,11.59985152,86.208,86.167,1.5778464]
[1773091755335,4.13952877,86.2,86.169,1.5778464]
[1773091755640,4.13952877,86.19,86.169,1.5778464]
[1773091755828,11.59985152,86.208,86.169,1.5778464]
[1773091755829,4.13952877,86.2,86.169,1.5778464]
[1773091757451,4.13952877,86.19,86.169,1.5778464]
[1773091757650,40.60371929,86.199,86.169,1.5778464]
[1773091758561,4.13866123,86.19,86.15,1.5778464]
[1773091759831,11.60240866,86.189,86.15,1.5778464]
[1773091760029,11.60240866,86.189,86.141,0.28432314]
[1773091760030,11.60240866,86.189,86.152,1.5778464]
[1773091760232,4.13866123,86.18,86.152,1.5778464]
[1773091761447,40.60843031,86.189,86.152,1.5778464]
[1773091761633,4.13866123,86.18,86.152,1.5778464]
[1773091762443,4.13866123,86.18,86.154,1.5778464]
[1773091762631,4.13866123,86.18,86.15,1.5778464]
[1773091764356,4.13866123,86.19,86.15,1.5778464]
[1773091764660,11.60240866,86.189,86.152,1.5778464]
[1773091766735,40.60843031,86.189,86.154,1.5778464]
[1773091766934,4.13866123,86.18,86.154,1.5778464]
[1773091768558,11.60375497,86.179,86.156,1.5778464]
[1773091771059,11.60375497,86.179,86.146,1.5778464]
[1773091771556,29.00602165,86.189,86.146,1.5778464]
[1773091771557,11.60307638,86.185,86.146,1.5778464]
[1773091774561,40.60843031,86.189,86.147,11.60806528]
[1773091774767,11.60240866,86.189,86.148,1.5778464]
[1773091775754,11.60240866,86.189,86.149,11.60779579]
[1773091776058,11.60240866,86.189,86.15,1.5778464]
[1773091777346,0.28432314,86.222,86.15,1.5778464]
[1773091777672,4.13866123,86.2,86.152,1.5778464]
[1773091777972,4.13866123,86.2,86.154,1.5778464]
[1773091778551,4.13866123,86.18,86.154,1.5778464]
[1773091778855,4.13866123,86.18,86.156,1.5778464]
[1773091779657,4.13866123,86.17,86.128,1.5778464]
[1773091779861,4.13866123,86.17,86.129,0.28432314]
[1773091780066,4.13866123,86.17,86.13,1.5778464]
[1773091780663,4.13866123,86.17,86.114,3.69383402]
[1773091780664,1.49389164,86.139,86.089,11.61588588]
[1773091780854,4.13866123,86.12,86.089,11.61588588]
[1773091781357,1.49389164,86.109,86.062,11.6195301]
[1773091781558,1.49389164,86.109,86.063,0.28432314]
[1773091781949,1.49389164,86.109,86.062,40.66835536]
[1773091782366,1.49389164,86.109,86.063,0.28432314]
[1773091782751,11.6133228,86.108,86.066,1.73592681]
[1773091782952,11.6133228,86.108,86.066,1.45160367]
[1773091783153,11.6133228,86.108,86.068,1.45160367]
[1773091783867,1.49389164,86.099,86.068,1.45160367]
[1773091784168,5.63255287,86.09,86.068,1.45160367]
[1773091784473,1.49389164,86.099,86.068,1.45160367]
[1773091785053,1.49389164,86.097,86.07,1.45160367]
[1773091788865,1.4642836,86.089,86.065,1.48492078]
[1773091789979,4.13866123,86.08,86.065,1.48492078]
[1773091790158,1.45912563,86.079,86.06,1.48492078]
[1773091792373,1.43019788,86.089,86.062,1.48492078]
[1773091798573,11.61602081,86.088,86.063,11.61939509]
[1773091798768,12.99128577,86.088,86.064,1.48492078]
[1773091800793,1.357784,86.087,86.065,11.61912507]
[1773091801089,1.357784,86.069,86.054,62.4]
[1773091801293,11.61602081,86.088,86.039,1.48492078]
[1773091801294,1.357784,86.059,86.039,1.48492078]
[1773091801497,1.357784,86.059,86.01,0.2]
[1773091801498,4.13866123,86.05,86.033,1.48492078]
[1773091801694,1.14919381,86.055,86.033,1.48492078]
[1773091802478,1.14919381,86.055,86.027,13.10917176]
[1773091802790,1.1407023,86.059,86.032,1.48492078]
[1773091802968,1.1407023,86.059,86.034,1.48492078]
[1773091804980,1.11580848,86.057,86.034,1.48492078]
[1773091805578,4.13866123,86.08,86.03,1e-08]
[1773091805579,4.13866123,86.04,86.03,1e-08]
[1773091805876,4.13866123,86.04,86.01,0.2]
[1773091805877,1.10770042,86.039,86.011,11.62641987]
[1773091806073,4.13866123,86.03,86.011,11.62641987]
[1773091806474,4.13866123,86.03,86.011,12.94875724]
[1773091806796,40.67119084,86.056,86.01,0.2]
[1773091806797,4.13866123,86.02,86.01,0.2]
[1773091807494,1.0996855,86.028,86.01,0.2]
[1773091807677,1.0996855,86.028,86.01,11.82654633]
[1773091807881,1.09284156,86.034,86.011,1.32233737]
[1773091808089,4.13866123,86.03,86.011,1.32233737]
[1773091808597,1.08607624,86.029,86.01,0.2]
[1773091809894,0.87938862,86.027,85.996,1.32233737]
[1773091810102,4.13866123,86.01,85.99,1.52233737]
[1773091810484,11.62412237,86.028,85.992,1.32233737]
[1773091811007,4.13866123,86.02,85.992,1.32233737]
[1773091811178,0.87277781,86.013,85.992,1.32233737]
[1773091811385,0.87277781,86.013,85.99,0.2]
[1773091812084,0.86624294,86.011,85.99,0.2]
[1773091812320,0.65978313,85.999,85.966,1.32233737]
[1773091812496,0.65978313,85.999,85.94,0.2]
[1773091812497,0.65978313,86.022,85.972,1.32233737]
[1773091812799,0.65978313,86.02,85.972,1.32233737]
[1773091813401,0.65339751,86.019,85.971,11.63182933]
[1773091813608,0.65339751,86.024,85.972,1.32233737]
[1773091813916,0.65339751,86.024,85.972,1.60666051]
[1773091814204,0.65339751,86.022,85.974,1.60666051]
[1773091814887,0.64708524,86.029,85.974,1.60666051]
[1773091816788,0.63531912,86.027,85.976,1.60666051]
[1773091819582,0.61695904,86.025,85.978,1.60666051]
[1773091819787,11.62439262,86.026,85.978,1.60666051]
[1773091820710,12.23537168,86.026,85.978,1.60666051]
[1773091824196,0.59344809,86.025,85.98,1.32233737]
[1773091825811,4.73681003,86.0,85.98,1.32233737]
[1773091826113,0.5820938,86.0,85.972,1.32233737]
[1773091826290,4.15471623,86.01,85.974,1.32233737]
[1773091826490,0.57651429,86.022,85.974,1.32233737]
[1773091826901,0.57651429,86.022,85.974,1.60666051]
[1773091827801,7.15880045,86.036,85.98,1.60666051]
[1773091828398,7.15880045,86.036,85.989,1.32233737]
[1773091828598,7.72434722,86.036,85.989,1.32233737]
[1773091828799,19.34745601,86.036,85.989,1.32233737]
[1773091829127,7.15880045,86.036,85.989,1.32233737]
[1773091830420,7.15880045,86.036,85.99,40.70240725]
[1773091830713,7.15880045,86.036,85.991,1.32233737]
[1773091831305,0.54956339,86.035,85.991,1.32233737]
[1773091831623,12.17274,86.035,85.993,1.60666051]
[1773091831801,12.17274,86.035,85.995,1.60666051]
[1773091832918,0.54956339,86.035,85.998,1.32233737]
[1773091833121,7.15880045,86.036,85.998,1.32233737]
[1773091833919,7.15880045,86.036,85.999,4.82477569]
[1773091834126,7.15880045,86.036,86.0,1.62213292]
[1773091835019,7.15880045,86.036,86.003,1.33780978]
[1773091836623,7.15880045,86.036,86.005,1.62213292]
[1773091837931,0.51435419,86.052,86.006,1.33780978]
[1773091839835,0.50480642,86.068,86.011,1.33780978]
[1773091840010,0.50480642,86.068,86.02,1.33780978]
[1773091840326,0.50011462,86.067,86.02,1.33780978]
[1773091842840,0.49089208,86.065,86.045,5.0]
[1773091845038,0.48188018,86.063,86.045,5.0]
[1773091846644,0.47307411,86.061,86.045,5.0]
[1773091848424,11.61980013,86.06,86.045,5.0]
[1773091848642,0.46446917,86.059,86.045,5.0]
[1773091851340,0.45192887,86.057,86.045,5.0]
[1773091852427,11.6194519,86.063,86.046,1.25544147]
[1773091852634,7.17860251,86.069,86.048,1.25544147]
[1773091853340,0.44380689,86.105,86.049,1.25544147]
[1773091853643,11.61197426,86.118,86.049,1.25544147]
[1773091853644,0.43981573,86.089,86.049,1.25544147]
[1773091854945,0.28432314,86.11,86.051,1.25544147]
[1773091854946,0.43587041,86.087,86.051,1.25544147]
[1773091857745,0.42430429,86.093,86.053,1.25544147]
[1773091858255,11.61453675,86.099,86.053,1.25544147]
[1773091858752,11.61453675,86.099,86.055,1.25544147]
[1773091860350,0.41313215,86.102,86.057,1.25544147]
[1773091860546,11.61355443,86.107,86.059,1.53976461]
[1773091864529,0.39535119,86.115,86.061,1.19226523]
[1773091866658,0.38852144,86.099,86.047,1.19226523]
[1773091866847,0.38852144,86.089,86.051,1.19226523]
[1773091867540,0.38516529,86.099,86.051,1.19226523]
[1773091870063,0.38516529,86.099,86.036,61.80902964]
[1773091870064,0.3785682,86.097,86.053,1.19226523]
[1773091870370,0.37532637,86.079,86.046,1.19226523]
[1773091870657,0.37532637,86.079,86.04,1.19226523]
[1773091871562,11.61723533,86.079,86.044,11.62190868]
[1773091872852,40.66032365,86.079,86.044,11.62190868]
[1773091874746,4.15471623,86.07,86.04,12.81470193]
[1773091875061,4.15471623,86.07,86.04,11.6224367]
[1773091875563,4.15471623,86.07,86.036,11.62299029]
[1773091879566,11.61858508,86.069,86.036,11.62299029]
[1773091880363,11.61858508,86.069,86.039,11.62254811]
[1773091880948,11.61710037,86.08,86.046,1.27658638]
[1773091881860,11.61588588,86.089,86.048,1.27658638]
[1773091882075,40.65560059,86.089,86.048,1.27658638]
[1773091884575,4.15056948,86.07,86.045,5.0]
[1773091884878,4.15056948,86.08,86.046,1.27658638]
[1773091885870,40.66032365,86.079,86.046,1.27658638]
[1773091888470,11.61723533,86.079,86.048,1.27658638]
[1773091889869,11.61615574,86.087,86.048,1.27658638]
[1773091890561,4.15056948,86.09,86.05,1.27658638]
[1773091890768,4.15056948,86.08,86.05,1.27658638]
[1773091893773,11.61723533,86.079,86.052,1.27658638]
[1773091894459,29.03667609,86.099,86.052,1.27658638]
[1773091895568,11.61467165,86.098,86.054,1.27658638]
[1773091897679,11.61467165,86.098,86.056,1.27658638]
[1773091898679,11.61467165,86.098,86.057,11.62020521]
[1773091898872,11.61467165,86.098,86.058,1.27658638]
[1773091900081,29.03667609,86.099,86.052,1.27658638]
[1773091900082,4.15056948,86.07,86.052,1.27658638]
[1773091904971,11.61858508,86.069,86.052,1.27658638]
[1773091906791,4.15056948,86.08,86.052,1.27658638]
[1773091906792,11.61723533,86.079,86.052,1.27658638]
[1773091906996,4.15056948,86.07,86.052,1.27658638]
[1773091915684,11.61858508,86.069,86.052,1.27658638]
[1773091921403,11.61858508,86.069,86.045,1.27658638]
[1773091921586,4.15056948,86.06,86.028,1.27658638]
[1773091921785,4.15056948,86.05,86.028,1.27658638]
[1773091924805,4.15056948,86.06,86.029,11.62398726]
[1773091924990,4.15056948,86.06,86.03,1.27658638]
[1773091927711,11.61993516,86.059,86.031,11.62371703]
[1773091928094,11.61993516,86.059,86.032,1.27658638]
[1773091928592,4.15056948,86.05,86.032,1.27658638]
[1773091928793,11.62128554,86.049,86.028,1.27658638]
[1773091930706,11.62128554,86.049,86.029,1.27658638]
[1773091932093,11.62128554,86.049,86.028,11.62405704]
[1773091932828,11.62128554,86.049,86.027,1.27658638]
[1773091935228,11.62128554,86.049,86.028,11.62412237]
[1773091935616,11.62128554,86.049,86.028,12.90070875]
[1773091935800,4.15056948,86.05,86.029,1.27658638]
[1773091936433,11.62128554,86.049,86.029,1.27658638]
[1773091939635,4.15213494,86.05,86.029,1.27658638]
[1773091940837,11.62128554,86.049,86.029,1.27658638]
[1773091942119,4.15213494,86.04,86.025,1.27658638]
[1773091942619,11.62128554,86.049,86.025,1.27658638]
[1773091942934,11.62128554,86.049,86.027,1.27658638]
[1773091947021,11.62128554,86.049,86.029,1.27658638]
[1773091955140,8.3054051,86.04,86.004,1.27658638]
[1773091955351,4.15270255,86.02,86.004,1.27658638]
[1773091955723,4.15270255,86.01,85.994,11.62871773]
[1773091955946,4.15270255,86.01,85.995,1.27658638]
[1773091956342,4.15270255,86.02,85.995,1.27658638]
[1773091957141,11.62533858,86.019,85.997,1.27658638]
[1773091962339,4.15270255,86.01,85.997,1.27658638]
[1773091963553,15.7792599,86.01,85.997,1.27658638]
[1773091964148,58.09168057,86.071,85.997,1.27658638]
[1773091964344,4.15270255,86.04,86.001,1.27658638]
[1773091964649,4.15270255,86.05,86.011,1.27658638]
[1773091966354,15.7739711,86.05,86.013,1.27658638]
[1773091967950,4.15270255,86.04,86.013,1.27658638]
[1773091968158,4.15270255,86.03,86.013,1.27658638]
[1773091968352,11.62126855,86.05,86.013,1.27658638]
[1773091968559,4.15270255,86.04,86.013,1.27658638]
[1773091969844,0.28432314,86.055,86.013,1.27658638]
[1773091970158,1.1549673,86.029,85.995,11.62858305]
[1773091970958,1.1549673,86.009,85.99,15.06070393]
[1773091971261,4.15270255,86.0,85.99,15.06070393]
[1773091972965,4.15270255,86.0,85.986,11.6298002]
[1773091975056,4.15270255,86.0,85.986,1.1390977]
[1773091976267,4.15270255,86.0,85.986,12.76888627]
[1773091977148,4.15270255,86.0,85.986,11.62978857]
[1773091977359,4.15270255,86.0,85.987,1.1390977]
[1773091977559,1.1549673,86.005,85.987,1.1390977]
[1773091978173,1.1549673,86.017,85.989,1.1390977]
[1773091979847,1.1549673,86.017,85.991,1.1390977]
[1773091981083,11.62574404,86.016,85.991,1.1390977]
[1773091981852,12.76007351,86.014,85.993,1.1390977]
[1773091982969,11.62601436,86.014,85.993,1.1390977]
[1773091983154,11.62547373,86.018,85.995,1.1390977]
[1773091985068,1.10513016,86.018,85.995,1.1390977]
[1773091986373,1.10513016,86.018,85.997,1.11388836]
[1773091986778,11.62398726,86.029,85.997,1.11388836]
[1773091987073,1.09928931,86.037,86.001,1.11388836]
[1773091987252,1.09928931,86.035,86.003,1.11388836]
[1773091989370,1.08822472,86.033,86.005,1.11388836]
[1773091991259,4.15270255,86.03,86.005,1.11388836]
[1773091991462,12.69568178,86.032,86.007,1.11388836]
[1773091992582,1.06684791,86.031,86.009,1.11388836]
[1773091995189,11.62385214,86.03,86.009,1.11388836]
[1773091998893,1.036579,86.029,86.009,1.11388836]
[1773092000084,11.62412237,86.028,86.009,1.11388836]
[1773092001380,1.02221339,86.028,86.009,1.11388836]
[1773092005878,12.6463378,86.028,86.009,1.11388836]
[1773092007578,0.99493353,86.027,86.009,1.11388836]
[1773092012604,0.97360112,86.031,86.009,1.11388836]
[1773092014884,11.62385214,86.03,86.01,11.62655505]
[1773092015185,11.62385214,86.03,86.011,1.07640094]
[1773092016389,0.95346601,86.043,86.013,1.07640094]
[1773092020910,0.93817468,86.041,86.013,1.07640094]
[1773092022125,0.93817468,86.041,86.015,1.07640094]
[1773092023518,0.92716108,86.039,86.017,1.07640094]
[1773092026821,11.62277133,86.038,86.018,11.62547373]
[1773092027004,11.62277133,86.038,86.019,1.07640094]
[1773092032227,11.62128554,86.049,86.021,1.05705024]
[1773092032423,11.6207628,86.053,86.021,1.05705024]
[1773092032934,12.51353284,86.056,86.031,1.05705024]
[1773092033115,7.27143584,86.059,86.031,1.05705024]
[1773092033425,0.89308762,86.056,86.031,1.05705024]
[1773092034220,7.27143584,86.059,86.033,1.05705024]
[1773092036332,7.27143584,86.059,86.034,11.62331171]
[1773092036515,7.27143584,86.059,86.035,1.05705024]
[1773092037637,7.27143584,86.059,86.041,1.05705024]
[1773092038952,7.27143584,86.059,86.034,11.62331171]
[1773092038953,0.87445492,86.057,86.037,1.05705024]
[1773092039527,1.74624855,86.059,86.041,1.05705024]
[1773092041050,1.74624855,86.059,86.043,1.05705024]
[1773092045342,1.74624855,86.059,86.032,62.4]
[1773092045343,0.85428788,86.057,86.038,1.03849548]
[1773092046336,11.62007018,86.058,86.04,1.03849548]
[1773092046641,1.74624855,86.059,86.04,1.03849548]
[1773092046849,1.74624855,86.059,86.041,1.03849548]
[1773092047749,0.97245162,86.088,86.051,1.03849548]
[1773092047950,0.97245162,86.088,86.061,1.03849548]
[1773092048830,0.97245162,86.087,86.061,1.03849548]
[1773092049030,0.97245162,86.087,86.063,1.03849548]
[1773092051049,7.39909685,86.11,86.071,1.03849548]
[1773092051050,11.61539664,86.093,86.071,1.03849548]
[1773092051660,0.97245162,86.092,86.071,1.03849548]
[1773092052985,12.58806765,86.091,86.071,1.03849548]
[1773092053487,11.61488821,86.097,86.081,1.03849548]
[1773092053661,11.61430524,86.101,86.081,1.03849548]
[1773092054776,11.61430524,86.101,86.09,4.1540905]
[1773092054985,11.61430524,86.101,86.089,1.03849548]
[1773092056176,11.61318793,86.109,86.089,1.03849548]
[1773092056383,0.97245162,86.108,86.089,1.03849548]
[1773092056566,0.97245162,86.108,86.091,1.03849548]
[1773092057772,11.61345767,86.107,86.091,1.03849548]
[1773092058885,12.58590929,86.107,86.091,1.03849548]
[1773092060090,12.08590929,86.107,86.091,1.03849548]
[1773092061279,11.61372742,86.105,86.091,1.03849548]
[1773092064370,11.61328409,86.109,86.091,1.03849548]
[1773092066976,7.39909685,86.11,86.1,4.14553577]
[1773092067285,7.39909685,86.11,86.101,1.03849548]
[1773092071495,0.1,86.12,86.102,1.03849548]
[1773092071796,0.1,86.12,86.11,4.14553577]
[1773092072176,11.61183943,86.119,86.109,1.03849548]
[1773092073990,0.1,86.12,86.109,1.03849548]
[1773092074178,0.1,86.12,86.11,4.14553577]
[1773092074380,0.1,86.12,86.111,1.00272789]
[1773092078897,1.148539,86.12,86.102,1.00272789]
[1773092079802,0.1,86.12,86.102,1.00272789]
[1773092084494,0.1,86.12,86.111,1.00272789]
[1773092089905,0.1,86.12,86.091,62.4]
[1773092089906,5.28241406,86.12,86.091,1.00754011]
[1773092090099,1.03687829,86.099,86.05,4.14553577]
[1773092090303,1.03687829,86.089,86.05,4.14553577]
[1773092090804,1.03687829,86.079,86.04,4.14553577]
[1773092091417,1.03687829,86.059,86.029,11.62398726]
[1773092092206,1.03687829,86.057,86.03,1.00754011]
[1773092092409,4.14553577,86.04,86.024,12.63209394]
[1773092093997,4.14553577,86.04,86.025,1.00754011]
[1773092094405,1.03687829,86.041,86.025,1.00754011]
[1773092099511,1.03687829,86.041,86.027,1.00754011]
[1773092101724,1.03687829,86.039,86.021,11.62506829]
[1773092101914,1.03687829,86.039,86.021,12.6326084]
[1773092102504,1.03687829,86.039,86.022,1.00754011]
[1773092103018,1.03687829,86.039,86.023,12.63233812]
[1773092103318,1.03687829,86.039,86.024,1.00754011]
[1773092108909,0.93155385,86.037,86.021,0.99139271]
[1773092110822,0.93155385,86.035,86.021,0.99139271]
[1773092115523,0.93155385,86.033,86.02,0.2]
[1773092115739,11.62331171,86.034,85.991,0.99139271]
[1773092115740,0.93155385,86.029,85.991,0.99139271]
[1773092115905,0.93155385,86.019,85.993,0.99139271]
[1773092116815,0.93155385,86.009,85.99,11.62919902]
[1773092120041,0.93155385,85.999,85.973,0.99139271]
[1773092120208,0.93155385,85.989,85.973,0.99139271]
[1773092124512,0.93155385,85.989,85.974,12.62281616]
[1773092125032,0.93155385,85.989,85.975,0.99139271]
[1773092128628,0.93155385,85.994,85.975,0.99139271]
[1773092128834,0.93155385,85.994,85.976,11.63115287]
[1773092129037,0.93155385,85.994,85.977,0.99139271]
[1773092131134,0.93155385,85.994,85.976,11.63115287]
[1773092131135,0.93155385,85.994,85.972,0.99139271]
[1773092132829,0.93155385,85.994,85.973,11.63155874]
[1773092133033,0.93155385,85.994,85.973,12.62295145]
[1773092133240,0.93155385,85.994,85.974,0.87392243]
[1773092134733,0.84398207,85.992,85.974,0.87392243]
[1773092135921,0.84398207,85.992,85.975,11.63128816]
[1773092136521,0.84398207,85.99,85.97,0.2]
[1773092137438,0.84398207,85.988,85.97,1.07392243]
[1773092139735,0.84398207,85.986,85.97,0.2]
[1773092140830,11.62993545,85.985,85.97,0.2]
[1773092141038,0.84398207,85.984,85.97,0.2]
[1773092154560,0.84398207,85.984,85.971,0.76386748]
[1773092157469,0.77908216,85.991,85.972,11.63169403]
[1773092157772,0.77908216,86.004,85.973,0.76386748]
[1773092158072,0.77908216,86.002,85.975,0.76386748]
[1773092159578,0.77908216,86.016,85.981,0.76386748]
[1773092159782,0.77908216,86.016,85.99,4.1576953]
[1773092159955,0.77908216,86.016,85.991,0.76386748]
[1773092160276,0.77908216,86.022,85.993,0.76386748]
[1773092160871,0.77908216,86.02,85.993,0.76386748]
[1773092161795,0.77908216,86.019,85.995,0.76386748]
[1773092163275,0.77908216,86.019,86.001,0.79509905]
[1773092168077,0.77908216,86.019,86.002,0.79509905]
[1773092168781,0.77165064,86.017,85.992,0.79509905]
[1773092170984,0.77165064,86.017,85.994,0.79509905]
[1773092173978,0.77165064,86.017,85.996,0.79509905]
[1773092176879,0.77165064,86.017,85.997,11.62831261]
[1773092177080,0.77165064,86.017,85.998,0.79509905]
[1773092187717,0.77165064,86.017,85.999,11.62804218]
[1773092189616,0.77165064,86.017,85.999,0.79509905]
[1773092195304,0.68167211,86.015,85.999,0.79509905]
[1773092199020,4.15485728,86.01,85.985,62.4]
[1773092199223,0.68167211,86.009,85.985,62.4]
[1773092199921,0.68167211,86.009,85.986,11.6298002]
[1773092201125,0.68167211,86.007,85.982,11.63034123]
[1773092201425,0.68167211,86.007,85.982,12.14691198]
[1773092202836,0.68167211,86.005,85.983,0.51375602]
[1773092206033,0.68167211,86.005,85.984,11.63007071]
[1773092206817,0.68167211,86.003,85.98,11.63050222]
[1773092209638,11.62763656,86.002,85.98,11.63050222]
[1773092209842,0.66828108,86.001,85.98,11.63050222]
[1773092212330,11.62790697,86.0,85.98,11.63050222]
[1773092212631,0.66828108,85.999,85.98,11.63050222]
[1773092214145,0.66828108,85.997,85.975,11.63115992]
[1773092215143,0.66828108,85.997,85.97,0.2]
[1773092217148,11.62844783,85.996,85.97,0.66790056]
[1773092217347,0.66828108,85.995,85.971,0.46790056]
[1773092219056,0.66828108,85.993,85.971,0.46790056]
[1773092219533,0.66828108,85.993,85.97,0.2]
[1773092220340,11.62898874,85.992,85.971,0.45682033]
[1773092220540,0.66828108,85.991,85.971,0.45682033]
[1773092223659,0.6807455,85.989,85.97,0.2]
[1773092224854,0.6807455,85.987,85.97,0.2]
[1773092226961,0.6807455,85.985,85.97,0.2]
[1773092228444,0.6807455,85.983,85.97,0.2]
[1773092228962,0.6807455,85.983,85.956,29.08458959]
[1773092228963,0.6807455,85.979,85.953,10.52480764]
[1773092230753,0.6807455,85.977,85.953,10.52480764]
[1773092231165,0.6807455,85.977,85.953,11.20698182]
[1773092231367,0.6807455,85.977,85.954,0.68217418]
[1773092232565,0.6807455,85.975,85.954,0.68217418]
[1773092233960,11.63142345,85.974,85.954,0.68217418]
[1773092234160,0.6807455,85.973,85.954,0.68217418]
[1773092234354,11.63087616,85.979,85.961,0.68217418]
[1773092238863,0.6807455,85.979,85.961,0.68217418]
[1773092240068,40.69814764,85.999,85.961,0.68217418]
[1773092240069,12.31162781,85.978,85.961,0.68217418]
[1773092246677,0.6807455,85.977,85.961,0.68217418]
[1773092246972,0.6807455,85.977,85.955,11.63399453]
[1773092247178,0.6807455,85.977,85.95,0.2]
[1773092247355,0.6807455,85.977,85.951,11.63453595]
[1773092247555,0.6807455,85.969,85.942,62.4]
[1773092248358,0.6807455,85.969,85.842,95.90625433]
[1773092248359,0.6807455,85.988,85.86,19.60834867]
[1773092248561,0.22338278,85.919,85.87,4.16041893]
[1773092248767,0.22338278,85.919,85.86,0.1]
[1773092248768,11.86238741,85.918,85.881,11.64401904]
[1773092248968,0.22338278,85.917,85.881,11.64401904]
[1773092249662,0.22338278,85.917,85.882,0.68217418]
[1773092250068,0.22338278,85.917,85.882,0.18217418]
[1773092250979,0.6807455,85.915,85.883,11.64374788]
[1773092252072,0.6807455,85.915,85.884,0.68217418]
[1773092253082,0.6807455,85.913,85.884,0.68217418]
[1773092253767,0.60065399,85.918,85.891,0.6157338]
[1773092254083,11.63895445,85.919,85.891,0.6157338]